bitfinex/quotes_BTCUSD_20240817
["timestamp","ask_amount","ask_price","bid_price","bid_amount"]
[1723936089567,0.1408,59454.0,59451.0,1.51386765]
[1723936091298,0.0002,59459.0,59451.0,1.51386765]
[1723936091477,0.0664,59457.0,59451.0,1.51386765]
[1723936092400,0.0664,59457.0,59451.0,1.49267054]
[1723936092610,0.0664,59457.0,59451.0,1.51385648]
[1723936093872,0.0664,59457.0,59451.0,1.58124568]
[1723936095600,0.0744,59458.0,59451.0,1.58524568]
[1723936095771,0.0744,59458.0,59451.0,1.83755368]
[1723936096315,0.0666,59459.0,59451.0,1.83755368]
[1723936096731,0.0666,59459.0,59451.0,1.81636754]
[1723936096933,0.0666,59459.0,59451.0,1.83755316]
[1723936097343,0.0666,59459.0,59451.0,1.82355316]
[1723936097516,0.0666,59459.0,59451.0,1.83755316]
[1723936098098,0.0666,59459.0,59451.0,1.83355316]
[1723936098254,0.0666,59459.0,59451.0,1.82155316]
[1723936098858,0.0666,59459.0,59451.0,1.83755316]
[1723936099615,0.4,59453.0,59451.0,1.83755316]
[1723936099866,0.4,59453.0,59451.0,2.07958706]
[1723936100015,0.4,59453.0,59451.0,2.12983049]
[1723936100219,0.4,59453.0,59451.0,2.0710685]
[1723936100569,0.4,59453.0,59451.0,2.27313307]
[1723936100773,0.4,59453.0,59451.0,2.21177554]
[1723936101003,0.4,59453.0,59451.0,2.27311427]
[1723936101405,0.4,59453.0,59451.0,2.25911427]
[1723936101603,0.4,59453.0,59451.0,2.27311427]
[1723936101816,0.4,59453.0,59451.0,2.25911427]
[1723936102550,0.4,59453.0,59451.0,2.33448088]
[1723936103159,0.4,59453.0,59451.0,2.34848088]
[1723936103336,0.4,59453.0,59451.0,2.27311427]
[1723936103544,0.4,59453.0,59451.0,2.33448088]
[1723936104092,0.4,59453.0,59451.0,2.34848088]
[1723936104209,0.4,59453.0,59451.0,2.44278088]
[1723936104669,0.16326667,59453.0,59452.0,1.745802]
[1723936104920,0.16326667,59453.0,59452.0,2.10169527]
[1723936104921,0.10529399,59453.0,59452.0,2.10169527]
[1723936105122,0.03801999,59453.0,59452.0,2.10169366]
[1723936105228,0.0002,59459.0,59452.0,2.10169366]
[1723936105229,9.9e-07,59459.0,59458.0,1.678537]
[1723936105432,9.9e-07,59459.0,59458.0,3.02932866]
[1723936106467,0.00824,59480.0,59478.0,1.134873]
[1723936106671,0.00824,59480.0,59478.0,1.46315754]
[1723936107121,0.0746,59479.0,59478.0,1.21096354]
[1723936108112,0.0746,59479.0,59478.0,1.23896354]
[1723936108311,0.0746,59479.0,59478.0,1.23996354]
[1723936108552,0.0746,59479.0,59478.0,1.24416963]
[1723936108732,0.0746,59479.0,59478.0,1.24316963]
[1723936109011,0.1358,59479.0,59478.0,1.20943963]
[1723936109439,0.1358,59479.0,59478.0,1.19543963]
[1723936109651,0.1358,59479.0,59478.0,1.18143963]
[1723936109933,0.1358,59479.0,59478.0,0.94324563]
[1723936110077,0.1358,59479.0,59478.0,0.68205163]
[1723936111615,0.1358,59479.0,59478.0,0.93424563]
[1723936111842,0.1358,59479.0,59478.0,0.70505163]
[1723936113836,0.1358,59479.0,59478.0,0.95724563]
[1723936114058,0.1358,59479.0,59478.0,0.70505163]
[1723936114289,0.1358,59479.0,59478.0,0.95724563]
[1723936114997,0.18192531,59479.0,59478.0,0.95724563]
[1723936115228,0.18192531,59479.0,59478.0,0.70505163]
[1723936115458,0.18192531,59479.0,59478.0,0.95724563]
[1723936124434,0.23235022,59479.0,59478.0,0.95724563]
[1723936128448,0.23317422,59479.0,59478.0,0.95724563]
[1723936129474,0.18274931,59479.0,59478.0,0.97843157]
[1723936134601,0.136624,59479.0,59478.0,0.97843157]
[1723936135007,0.136624,59479.0,59478.0,1.23062557]
[1723936135366,0.136624,59479.0,59478.0,0.97843157]
[1723936136108,0.136624,59479.0,59478.0,1.23062557]
[1723936136497,0.136624,59479.0,59478.0,0.97843157]
[1723936136753,0.136624,59479.0,59478.0,1.23062557]
[1723936137162,0.136624,59479.0,59478.0,0.97843157]
[1723936141214,0.001024,59479.0,59478.0,0.97843157]
[1723936141779,0.001024,59479.0,59478.0,1.23062557]
[1723936142596,0.001024,59479.0,59478.0,0.97843157]
[1723936143201,0.001024,59479.0,59478.0,0.97843309]
[1723936143967,0.001024,59479.0,59478.0,1.23062709]
[1723936146953,0.001024,59479.0,59478.0,1.20943963]
[1723936147152,0.001024,59479.0,59478.0,1.23062712]
[1723936147611,0.001024,59479.0,59478.0,1.20943963]
[1723936147772,0.001024,59479.0,59478.0,1.23062712]
[1723936148240,0.001024,59479.0,59478.0,1.23062714]
[1723936149443,0.001024,59479.0,59478.0,1.37562714]
[1723936149961,0.001024,59479.0,59478.0,1.63605948]
[1723936150379,0.001024,59479.0,59478.0,1.66976948]
[1723936150991,0.401024,59479.0,59478.0,1.66976948]
[1723936151198,0.401024,59479.0,59478.0,1.65576948]
[1723936151647,0.401024,59479.0,59478.0,1.66976948]
[1723936151862,0.401024,59479.0,59478.0,1.66976504]
[1723936153405,0.401024,59479.0,59478.0,1.65576504]
[1723936153523,0.401024,59479.0,59478.0,1.66976504]
[1723936153718,0.401024,59479.0,59478.0,1.67076504]
[1723936156396,0.401024,59479.0,59478.0,1.67276504]
[1723936156597,0.401024,59479.0,59478.0,2.30645904]
[1723936156799,1e-08,59479.0,59478.0,2.27845904]
[1723936157215,1e-08,59479.0,59478.0,2.29245904]
[1723936157638,1e-08,59479.0,59478.0,2.30645904]
[1723936158209,1e-08,59479.0,59478.0,2.33738988]
[1723936158605,1e-08,59479.0,59478.0,2.34661933]
[1723936159032,1e-08,59479.0,59478.0,2.32861933]
[1723936159207,1e-08,59479.0,59478.0,2.32138988]
[1723936159577,1e-08,59479.0,59478.0,2.33538988]
[1723936159780,1e-08,59479.0,59478.0,2.32138988]
[1723936160153,1e-08,59479.0,59478.0,2.27127763]
[1723936160351,1e-08,59479.0,59478.0,2.33738379]
[1723936160833,1e-08,59480.0,59479.0,1.584749]
[1723936160985,1e-08,59480.0,59479.0,2.02093865]
[1723936161192,1e-08,59486.0,59485.0,1.173448]
[1723936161390,1e-08,59486.0,59485.0,2.38907269]
[1723936163411,1e-08,59486.0,59485.0,2.40107269]
[1723936163789,1e-08,59486.0,59485.0,2.41507269]
[1723936163972,1e-08,59486.0,59485.0,2.41707269]
[1723936164187,1e-08,59486.0,59485.0,2.38614258]
[1723936164389,1e-08,59486.0,59485.0,2.36917263]
[1723936164632,1e-08,59486.0,59485.0,2.39034188]
[1723936165664,1e-08,59486.0,59485.0,2.40016101]
[1723936167326,1e-08,59486.0,59485.0,2.39616101]
[1723936168601,1e-08,59486.0,59485.0,2.37499176]
[1723936168825,1e-08,59486.0,59485.0,2.3961611]
[1723936171440,1e-08,59486.0,59485.0,2.1439971]
[1723936172060,1e-08,59486.0,59485.0,2.1522371]
[1723936173497,1e-08,59486.0,59485.0,2.13106776]
[1723936173715,1e-08,59486.0,59485.0,2.1522371]
[1723936174964,1e-08,59486.0,59485.0,2.0579371]
[1723936175139,1e-08,59486.0,59485.0,2.1522371]
[1723936177288,1e-08,59486.0,59485.0,2.13106776]
[1723936177488,1e-08,59486.0,59485.0,2.13197416]
[1723936177691,1e-08,59486.0,59485.0,2.15314893]
[1723936179267,1e-08,59486.0,59485.0,2.15214893]
[1723936179474,1e-08,59486.0,59485.0,2.08744893]
[1723936180350,1e-08,59486.0,59485.0,1.95797416]
[1723936180558,1e-08,59486.0,59485.0,2.0734498]
[1723936180764,1e-08,59486.0,59485.0,2.0874498]
[1723936181571,1e-08,59486.0,59485.0,2.1014498]
[1723936183256,1e-08,59486.0,59485.0,2.13238085]
[1723936185965,1e-08,59486.0,59485.0,2.18251947]
[1723936188122,1e-08,59486.0,59485.0,2.13238085]
[1723936188323,1e-08,59486.0,59485.0,2.14161007]
[1723936188909,1e-08,59486.0,59485.0,2.21686952]
[1723936189311,0.0607,59493.0,59486.0,1.13472]
[1723936189312,0.0078353,59487.0,59486.0,1.13472]
[1723936189516,0.0078353,59487.0,59486.0,1.54078093]
[1723936190351,0.0078353,59487.0,59486.0,1.49481654]
[1723936190730,0.0078353,59487.0,59486.0,1.50881654]
[1723936190992,0.0078353,59487.0,59486.0,1.47788476]
[1723936191311,0.0078353,59487.0,59486.0,1.89574361]
[1723936191444,0.0078353,59487.0,59486.0,1.99608955]
[1723936191642,0.0078353,59487.0,59486.0,1.97101354]
[1723936191844,0.0078353,59487.0,59486.0,1.89574361]
[1723936192188,0.0078353,59487.0,59486.0,1.97101441]
[1723936193410,0.0078353,59487.0,59486.0,1.99608955]
[1723936195196,0.0078353,59487.0,59486.0,1.89574361]
[1723936195671,0.0078353,59487.0,59486.0,1.89574122]
[1723936196233,0.0078353,59487.0,59486.0,2.02117365]
[1723936197086,0.0078353,59487.0,59486.0,2.02117375]
[1723936197690,0.0078353,59487.0,59486.0,2.08237375]
[1723936197894,0.0078353,59487.0,59486.0,2.08253887]
[1723936198273,0.0078353,59487.0,59486.0,1.95694007]
[1723936199052,0.0078353,59487.0,59486.0,2.29150007]
[1723936200124,0.0078353,59487.0,59486.0,2.44221863]
[1723936200468,0.0078353,59487.0,59486.0,2.47592863]
[1723936200677,1e-08,59487.0,59486.0,2.72814129]
[1723936201124,1e-08,59487.0,59486.0,2.56336681]
[1723936201304,1e-08,59487.0,59486.0,2.54933277]
[1723936201679,1e-08,59487.0,59486.0,2.56333277]
[1723936202440,1e-08,59487.0,59486.0,2.57733277]
[1723936203293,1e-08,59487.0,59486.0,2.57733102]
[1723936204581,1e-08,59487.0,59486.0,2.5773301]
[1723936205891,1e-08,59487.0,59486.0,2.57733743]
[1723936206720,1e-08,59487.0,59486.0,2.60629611]
[1723936207042,1e-08,59487.0,59486.0,2.57537087]
[1723936207247,1e-08,59487.0,59486.0,2.60629611]
[1723936207648,1e-08,59487.0,59486.0,2.57537096]
[1723936207849,1e-08,59487.0,59486.0,2.54497168]
[1723936208169,1e-08,59487.0,59486.0,2.60629607]
[1723936211105,1e-08,59487.0,59486.0,2.60429607]
[1723936212269,1e-08,59487.0,59486.0,2.58312911]
[1723936212473,1e-08,59487.0,59486.0,2.60430354]
[1723936212631,1e-08,59487.0,59486.0,2.54497168]
[1723936212829,1e-08,59487.0,59486.0,2.47580962]
[1723936213030,1e-08,59487.0,59486.0,2.57210962]
[1723936213411,1e-08,59487.0,59486.0,2.44644422]
[1723936213909,1e-08,59487.0,59486.0,2.44735062]
[1723936214866,1e-08,59487.0,59486.0,2.44935062]
[1723936215669,1e-08,59487.0,59486.0,2.44535062]
[1723936215887,1e-08,59487.0,59486.0,2.30675062]
[1723936216284,1e-08,59487.0,59486.0,2.45285062]
[1723936216532,1e-08,59487.0,59486.0,2.400747]
[1723936216736,1e-08,59487.0,59486.0,2.4528529]
[1723936217565,1e-08,59487.0,59486.0,2.4488529]
[1723936217972,1e-08,59487.0,59486.0,2.4508529]
[1723936218179,1e-08,59487.0,59486.0,2.4528529]
[1723936219395,1e-08,59487.0,59486.0,2.4488529]
[1723936219600,1e-08,59487.0,59486.0,2.4528529]
[1723936219807,1e-08,59487.0,59486.0,2.4508529]
[1723936220635,1e-08,59487.0,59486.0,2.44162398]
[1723936220842,1e-08,59487.0,59486.0,2.4508529]
[1723936221044,1e-08,59487.0,59486.0,2.44362397]
[1723936221182,1e-08,59487.0,59486.0,2.45285289]
[1723936221822,1e-08,59487.0,59486.0,2.60365575]
[1723936222602,1e-08,59487.0,59486.0,2.45285289]
[1723936223008,1e-08,59487.0,59486.0,2.59965575]
[1723936223230,1e-08,59487.0,59486.0,2.60165575]
[1723936223606,1e-08,59487.0,59486.0,2.60165573]
[1723936224170,1e-08,59487.0,59486.0,2.59966398]
[1723936224370,1e-08,59487.0,59486.0,2.45086227]
[1723936224970,1e-08,59487.0,59486.0,2.60366398]
[1723936225183,1e-08,59487.0,59486.0,2.6036616]
[1723936225804,1e-08,59487.0,59486.0,2.07994944]
[1723936226014,1e-08,59487.0,59486.0,2.60365474]
[1723936228252,1e-08,59487.0,59486.0,2.07994773]
[1723936230038,1e-08,59487.0,59486.0,2.07994618]
[1723936231357,1e-08,59487.0,59486.0,2.07994706]
[1723936233201,1e-08,59487.0,59486.0,2.60369436]
[1723936233604,1e-08,59487.0,59486.0,2.59969436]
[1723936233780,1e-08,59487.0,59486.0,2.60169436]
[1723936234988,1e-08,59487.0,59486.0,2.59969436]
[1723936235187,1e-08,59487.0,59486.0,2.44885636]
[1723936235387,1e-08,59487.0,59486.0,2.45085636]
[1723936235777,1e-08,59487.0,59486.0,2.45285636]
[1723936238575,1e-08,59487.0,59486.0,2.41270052]
[1723936238786,1e-08,59487.0,59486.0,2.45285741]
[1723936238987,1e-08,59487.0,59486.0,2.39152633]
[1723936239187,1e-08,59487.0,59486.0,2.4528574]
[1723936239992,1e-08,59487.0,59486.0,2.4528523]
[1723936240659,0.0076947,59489.0,59488.0,1.169389]
[1723936240862,0.0076947,59489.0,59488.0,1.89817881]
[1723936241855,0.0076947,59489.0,59488.0,1.91217881]
[1723936242541,0.0076947,59489.0,59488.0,2.06303958]
[1723936242917,0.0076947,59489.0,59488.0,2.06038602]
[1723936243066,0.0076947,59489.0,59488.0,2.18034479]
[1723936243568,0.0076947,59489.0,59488.0,2.19434479]
[1723936244471,0.0076947,59489.0,59488.0,2.13566728]
[1723936244915,0.0076947,59489.0,59488.0,2.13987337]
[1723936247264,0.0076947,59489.0,59488.0,2.13987449]
[1723936247583,0.0076947,59489.0,59488.0,2.08119698]
[1723936247810,0.0076947,59489.0,59488.0,2.08019698]
[1723936248082,0.0076947,59489.0,59488.0,1.72104409]
[1723936248083,0.1467947,59489.0,59488.0,1.72104409]
[1723936248337,0.1467947,59489.0,59488.0,1.25772416]
[1723936248592,0.1467947,59489.0,59488.0,1.20744661]
[1723936248827,0.1467947,59489.0,59488.0,1.19344661]
[1723936249073,0.1467947,59489.0,59487.0,0.05027755]
[1723936249074,0.4285417,59489.0,59487.0,0.05027755]
[1723936249322,0.464632,59487.0,59486.0,0.0009064]
[1723936250035,0.716787,59487.0,59486.0,0.0009064]
[1723936250315,1.07603447,59487.0,59486.0,0.0009064]
[1723936250825,0.82487947,59487.0,59486.0,0.0009064]
[1723936251279,0.126092,59481.0,59474.0,0.30155776]
[1723936251483,0.1687,59479.0,59474.0,0.30155776]
[1723936251688,0.1687,59479.0,59477.0,0.126098]
[1723936251924,0.1687,59479.0,59474.0,0.252207]
[1723936252180,0.1922,59479.0,59476.0,0.1261]
[1723936252946,0.1922,59479.0,59478.0,0.0049064]
[1723936254288,0.1922,59479.0,59478.0,0.0059064]
[1723936254703,0.1922,59479.0,59478.0,0.0049064]
[1723936255138,0.1922,59479.0,59478.0,0.0069064]
[1723936255597,0.1922,59479.0,59478.0,0.0009064]
[1723936256278,0.1872,59479.0,59478.0,0.0009064]
[1723936256500,0.1872,59479.0,59478.0,0.1270034]
[1723936256917,0.1872,59479.0,59478.0,0.1280034]
[1723936257128,0.1872,59479.0,59478.0,0.0019064]
[1723936259767,0.1872,59479.0,59478.0,0.1280034]
[1723936261051,0.0979,59479.0,59478.0,0.1280034]
[1723936261687,0.0979,59479.0,59478.0,0.3801974]
[1723936261906,0.0979,59479.0,59478.0,0.1280034]
[1723936263402,0.0979,59479.0,59478.0,0.3801974]
[1723936272779,0.098725,59479.0,59478.0,0.3801974]
[1723936274480,0.098725,59479.0,59478.0,0.6323914]
[1723936274709,0.075225,59479.0,59478.0,0.6323914]
[1723936275560,0.075225,59479.0,59478.0,0.3801974]
[1723936277264,0.075225,59479.0,59478.0,0.86704594]
[1723936277265,0.000825,59479.0,59478.0,0.86704594]
[1723936280468,0.000825,59479.0,59478.0,0.80394594]
[1723936283477,0.000825,59479.0,59478.0,0.88234594]
[1723936283651,0.000825,59479.0,59478.0,1.31881519]
[1723936285096,0.000825,59479.0,59478.0,1.31781519]
[1723936285472,0.001825,59479.0,59478.0,1.32781519]
[1723936286265,0.002825,59479.0,59478.0,1.33881519]
[1723936286439,0.002825,59479.0,59478.0,1.31763994]
[1723936286640,0.002825,59479.0,59478.0,1.33881307]
[1723936288423,0.002825,59479.0,59478.0,1.64592644]
[1723936288619,0.002825,59479.0,59478.0,1.67963644]
[1723936289394,0.000825,59479.0,59478.0,1.65863644]
[1723936289596,0.000825,59479.0,59478.0,1.67263644]
[1723936289890,0.001825,59479.0,59478.0,1.36273244]
[1723936290291,0.001825,59479.0,59478.0,1.33181307]
[1723936290620,0.001825,59479.0,59478.0,1.34581307]
[1723936294575,0.001825,59479.0,59478.0,1.32463994]
[1723936294776,0.001825,59479.0,59478.0,1.34580708]
[1723936298739,0.001825,59479.0,59478.0,1.32463994]
[1723936298887,0.001825,59479.0,59478.0,1.34580776]
[1723936302748,0.001825,59479.0,59478.0,1.32463994]
[1723936302950,0.001825,59479.0,59478.0,1.34580838]
[1723936306842,0.001825,59479.0,59478.0,1.32463994]
[1723936307044,0.001825,59479.0,59478.0,1.34580807]
[1723936310542,0.076225,59479.0,59478.0,1.20430807]
[1723936310741,0.076225,59479.0,59478.0,1.18313994]
[1723936310989,0.076225,59479.0,59478.0,1.20430916]
[1723936311624,0.076225,59479.0,59478.0,1.19030916]
[1723936311830,0.076225,59479.0,59478.0,0.95211516]
[1723936312037,0.075225,59479.0,59478.0,0.83811516]
[1723936312214,0.075225,59479.0,59478.0,0.81694594]
[1723936312418,0.075225,59479.0,59478.0,0.83094594]
[1723936312628,0.075225,59479.0,59478.0,0.81694594]
[1723936313003,0.075225,59479.0,59478.0,0.82694594]
[1723936313203,0.075225,59479.0,59478.0,0.83412033]
[1723936313408,0.075225,59479.0,59478.0,0.6413914]
[1723936313605,0.075225,59479.0,59478.0,0.6503914]
[1723936313944,0.075225,59479.0,59478.0,0.3981974]
[1723936314068,0.075225,59479.0,59478.0,0.3791974]
[1723936314298,0.075225,59479.0,59478.0,0.3851974]
[1723936314502,0.075225,59479.0,59478.0,0.3911974]
[1723936320804,0.000825,59479.0,59478.0,0.81494594]
[1723936321028,0.000825,59479.0,59478.0,1.30493994]
[1723936324473,0.000825,59479.0,59478.0,1.42611362]
[1723936326094,0.000825,59479.0,59478.0,1.42611251]
[1723936326313,0.000825,59479.0,59478.0,1.44911251]
[1723936326752,0.000825,59479.0,59478.0,1.70430651]
[1723936327182,0.000825,59479.0,59478.0,1.69830651]
[1723936327419,0.000825,59479.0,59478.0,1.70630651]
[1723936327644,0.000825,59479.0,59478.0,2.1797908]
[1723936327860,0.000825,59479.0,59478.0,2.1937908]
[1723936328077,0.000825,59479.0,59478.0,2.24983329]
[1723936328338,0.000825,59479.0,59478.0,2.12421123]
[1723936328514,0.000825,59479.0,59478.0,2.24983329]
[1723936328735,0.000825,59479.0,59478.0,2.12421123]
[1723936328951,0.000825,59479.0,59478.0,2.24983329]
[1723936329170,0.000825,59479.0,59478.0,2.25177671]
[1723936329900,0.000825,59479.0,59478.0,2.50397071]
[1723936330122,0.000825,59479.0,59478.0,2.36923875]
[1723936330366,0.000825,59479.0,59478.0,2.42131465]
[1723936330959,1e-08,59479.0,59478.0,2.42131465]
[1723936331165,1e-08,59479.0,59478.0,2.39331465]
[1723936331369,1e-08,59479.0,59478.0,2.64550865]
[1723936331573,1e-08,59479.0,59478.0,2.65950865]
[1723936331776,1e-08,59479.0,59478.0,2.40731465]
[1723936332030,1e-08,59479.0,59478.0,2.67350865]
[1723936332366,1e-08,59479.0,59478.0,2.65950865]
[1723936332929,1e-08,59479.0,59478.0,2.42131465]
[1723936333257,1e-08,59479.0,59478.0,2.40731465]
[1723936333467,1e-08,59479.0,59478.0,2.65950865]
[1723936333676,1e-08,59479.0,59478.0,2.42124847]
[1723936334079,1e-08,59479.0,59478.0,2.4212354]
[1723936334530,1e-08,59479.0,59478.0,2.359948]
[1723936334767,1e-08,59479.0,59478.0,2.5716222]
[1723936335581,1e-08,59479.0,59478.0,2.42122105]
[1723936335765,1e-08,59479.0,59478.0,2.67341505]
[1723936335992,1e-08,59479.0,59478.0,2.42122105]
[1723936336387,1e-08,59479.0,59478.0,2.67341505]
[1723936336601,1e-08,59479.0,59478.0,2.42122105]
[1723936337144,1e-08,59479.0,59478.0,2.67341505]
[1723936338182,1e-08,59479.0,59478.0,2.65226412]
[1723936338365,1e-08,59479.0,59478.0,2.67341592]
[1723936339412,1e-08,59479.0,59478.0,2.43301292]
[1723936340128,1e-08,59479.0,59478.0,2.68520974]
[1723936342988,1e-08,59479.0,59478.0,2.6852091]
[1723936345384,1e-08,59479.0,59478.0,2.4330151]
[1723936345732,1e-08,59479.0,59478.0,2.49168962]
[1723936345865,0.0117913,59499.0,59488.0,1.309889]
[1723936346067,0.0117913,59499.0,59488.0,1.69874354]
[1723936346515,0.0117913,59499.0,59488.0,1.71989517]
[1723936347095,0.0117913,59499.0,59488.0,1.73389517]
[1723936347255,0.0117913,59499.0,59488.0,1.73489517]
[1723936347478,0.0117913,59499.0,59488.0,1.81524317]
[1723936347679,0.0117913,59499.0,59488.0,1.81624317]
[1723936348565,0.0117913,59499.0,59488.0,1.81524317]
[1723936348769,0.0117913,59499.0,59488.0,1.81624317]
[1723936349647,0.0117913,59499.0,59488.0,1.81524317]
[1723936349852,0.0117913,59499.0,59488.0,1.82550011]
[1723936350206,0.0117913,59499.0,59488.0,1.80534848]
[1723936350407,0.0117913,59499.0,59488.0,1.82650003]
[1723936351355,0.0117913,59499.0,59488.0,1.82550003]
[1723936352842,0.0117913,59499.0,59488.0,1.80434848]
[1723936353043,0.0117913,59499.0,59488.0,1.82550009]
[1723936353243,0.0117913,59499.0,59488.0,1.82650009]
[1723936353468,0.0117913,59499.0,59488.0,1.82850009]
[1723936354246,0.0117913,59499.0,59488.0,1.80734848]
[1723936354586,0.0117913,59499.0,59488.0,2.08264962]
[1723936355391,0.0117913,59499.0,59488.0,2.11354669]
[1723936355968,0.0117913,59499.0,59488.0,2.11154669]
[1723936356195,0.0117913,59499.0,59488.0,2.11354669]
[1723936357360,0.0117913,59499.0,59488.0,2.12276546]
[1723936358473,0.0117913,59499.0,59488.0,2.12276458]
[1723936358906,0.0117913,59499.0,59488.0,2.1016168]
[1723936359076,0.0117913,59499.0,59488.0,2.12276605]
[1723936359522,0.0117913,59499.0,59488.0,2.18143314]
[1723936360480,0.0117913,59499.0,59488.0,2.12276605]
[1723936362364,0.0117913,59499.0,59488.0,2.09239769]
[1723936362515,0.0117913,59499.0,59488.0,2.12276552]
[1723936365302,0.0117913,59499.0,59488.0,2.17278223]
[1723936366397,0.0117913,59499.0,59488.0,2.11151619]
[1723936366546,0.0117913,59499.0,59488.0,2.17278578]
[1723936367153,0.0117913,59499.0,59488.0,2.12276907]
[1723936368156,0.0117913,59499.0,59488.0,2.57070029]
[1723936368992,0.0117913,59499.0,59488.0,2.55670029]
[1723936369212,0.0117913,59499.0,59488.0,2.59570865]
[1723936370216,0.0117913,59499.0,59488.0,2.58170865]
[1723936370794,0.0117913,59499.0,59488.0,2.53443906]
[1723936370999,0.0117913,59499.0,59488.0,2.60970782]
[1723936371203,0.0117913,59499.0,59488.0,2.63471618]
[1723936372234,0.0117913,59499.0,59488.0,2.50967439]
[1723936372921,0.0117913,59499.0,59488.0,2.55766529]
[1723936373080,0.0117913,59499.0,59488.0,2.50967439]
[1723936373282,0.0117913,59499.0,59488.0,2.55766529]
[1723936374699,0.0117913,59499.0,59488.0,2.55766536]
[1723936375397,0.0117913,59499.0,59488.0,2.70371551]
[1723936375635,0.0117913,59499.0,59488.0,2.65772461]
[1723936375849,0.0861913,59499.0,59488.0,2.70571551]
[1723936376083,0.0861913,59499.0,59488.0,2.65972461]
[1723936376348,0.0861913,59499.0,59488.0,2.55766536]
[1723936376569,0.0861913,59499.0,59488.0,2.50967446]
[1723936377035,0.0861913,59499.0,59488.0,2.55766536]
[1723936377254,0.0861913,59499.0,59488.0,2.50967446]
[1723936377709,0.0861913,59499.0,59488.0,2.55766536]
[1723936377937,0.0861913,59499.0,59488.0,2.50967446]
[1723936378396,0.0861913,59499.0,59488.0,2.55766536]
[1723936378633,0.0861913,59499.0,59488.0,2.50967484]
[1723936378871,0.0861913,59499.0,59488.0,2.55766628]
[1723936379049,0.0861913,59499.0,59488.0,2.50967484]
[1723936379288,0.0861913,59499.0,59488.0,2.55366628]
[1723936379528,0.0861913,59499.0,59488.0,2.50967484]
[1723936379762,0.0861913,59499.0,59488.0,2.55766628]
[1723936379979,0.0861913,59499.0,59488.0,2.50967484]
[1723936380204,0.0861913,59499.0,59488.0,2.55765584]
[1723936380432,0.0861913,59499.0,59488.0,2.5096644]
[1723936380687,0.0861913,59499.0,59488.0,2.55765584]
[1723936380890,0.0117913,59499.0,59488.0,2.5096644]
[1723936381095,0.0117913,59499.0,59488.0,2.55765584]
[1723936381260,0.0117913,59499.0,59488.0,2.48851439]
[1723936381463,0.0117913,59499.0,59488.0,2.50966348]
[1723936381661,0.0117913,59499.0,59488.0,2.55765394]
[1723936381862,0.0117913,59499.0,59488.0,2.50966349]
[1723936382442,0.0117913,59499.0,59488.0,2.55765396]
[1723936382679,0.0117913,59499.0,59488.0,2.50966349]
[1723936383173,0.0117913,59499.0,59488.0,2.5576564]
[1723936383373,0.0117913,59499.0,59488.0,2.50966476]
[1723936383875,0.0117913,59499.0,59488.0,2.5576564]
[1723936384079,0.0117913,59499.0,59488.0,2.50966476]
[1723936384221,0.0117913,59499.0,59488.0,2.5536564]
[1723936384438,0.0117913,59499.0,59488.0,2.50766476]
[1723936384624,0.0117913,59499.0,59488.0,3.0777104]
[1723936384835,0.0117913,59499.0,59488.0,2.50766476]
[1723936385053,0.00018848,59494.0,59488.0,3.0777104]
[1723936385208,0.00018848,59494.0,59488.0,2.50966476]
[1723936385410,0.00018848,59494.0,59488.0,3.07571006]
[1723936385618,0.00018848,59494.0,59488.0,2.49366442]
[1723936385814,0.00018848,59494.0,59488.0,3.06371006]
[1723936386058,0.00018848,59494.0,59488.0,2.50766442]
[1723936386275,0.00018848,59494.0,59488.0,2.55365606]
[1723936386478,0.00018848,59494.0,59488.0,2.52565606]
[1723936386688,0.00018848,59494.0,59488.0,2.53965606]
[1723936387467,0.00018848,59494.0,59488.0,2.49166442]
[1723936387943,0.00018848,59494.0,59488.0,2.49166431]
[1723936390609,0.00018848,59494.0,59488.0,2.49166435]
[1723936391020,0.00018848,59494.0,59488.0,2.49366435]
[1723936391167,0.00018848,59494.0,59488.0,2.49566435]
[1723936391925,0.00018848,59494.0,59488.0,2.54365599]
[1723936392067,0.00018848,59494.0,59488.0,2.49566435]
[1723936392269,0.00018848,59494.0,59488.0,2.54365599]
[1723936392471,0.00018848,59494.0,59488.0,2.49566049]
[1723936392702,0.00018848,59494.0,59488.0,2.54365213]
[1723936392858,0.00018848,59494.0,59488.0,2.49566049]
[1723936393059,0.00018848,59494.0,59488.0,3.06570009]
[1723936393257,0.00018848,59494.0,59488.0,2.49566049]
[1723936393684,0.00018848,59494.0,59488.0,3.06570009]
[1723936393880,0.00018848,59494.0,59488.0,2.46529277]
[1723936394084,0.00018848,59494.0,59488.0,2.49566434]
[1723936394301,0.00018848,59494.0,59488.0,2.54365911]
[1723936394525,0.00018848,59494.0,59488.0,2.49566434]
[1723936394720,0.00018848,59494.0,59488.0,3.06570707]
[1723936394944,0.00018848,59494.0,59488.0,2.49566434]
[1723936395350,0.00018848,59494.0,59488.0,3.06570707]
[1723936395576,0.00018848,59494.0,59488.0,2.49566434]
[1723936395924,0.00018848,59494.0,59488.0,3.06570707]
[1723936396126,0.00018848,59494.0,59488.0,2.49566434]
[1723936396644,0.00018848,59494.0,59488.0,3.06570707]
[1723936396822,0.00018848,59494.0,59488.0,2.49566434]
[1723936397174,1e-08,59489.0,59488.0,3.0177123]
[1723936397368,1e-08,59489.0,59488.0,3.06570707]
[1723936398174,1e-08,59489.0,59488.0,2.49566434]
[1723936398539,1e-08,59489.0,59488.0,3.0177123]
[1723936399513,1e-08,59489.0,59488.0,3.06570707]
[1723936399700,1e-08,59489.0,59488.0,2.49566434]
[1723936399873,1e-08,59489.0,59488.0,3.06570707]
[1723936400234,1e-08,59489.0,59488.0,2.49566434]
[1723936400424,1e-08,59489.0,59488.0,3.06661347]
[1723936400576,1e-08,59489.0,59488.0,2.49657074]
[1723936400791,1e-08,59489.0,59488.0,3.06661347]
[1723936400967,1e-08,59489.0,59488.0,2.49657074]
[1723936401170,1e-08,59489.0,59488.0,3.06661347]
[1723936401563,1e-08,59489.0,59488.0,2.46567241]
[1723936401765,1e-08,59489.0,59488.0,3.01862589]
[1723936402024,1e-08,59489.0,59488.0,3.06662629]
[1723936402216,1e-08,59489.0,59488.0,2.49657793]
[1723936402417,1e-08,59489.0,59488.0,3.06662629]
[1723936402619,1e-08,59489.0,59488.0,2.49657793]
[1723936402770,1e-08,59489.0,59488.0,3.06662629]
[1723936402972,1e-08,59489.0,59488.0,2.49657793]
[1723936403174,1e-08,59489.0,59488.0,3.06662629]
[1723936403403,1e-08,59489.0,59488.0,2.49657793]
[1723936403604,1e-08,59489.0,59488.0,3.06662629]
[1723936403845,1e-08,59489.0,59488.0,2.49657793]